bitfinex-derivatives/quotes_ETHF0:USTF0_20260113
["timestamp","ask_amount","ask_price","bid_price","bid_amount"]
[1768307200619,1.08647628,3135.0,3134.2,0.00323835]
[1768307201322,1.8073346,3135.0,3134.2,0.00323835]
[1768307205130,0.72085832,3135.0,3134.2,0.00323835]
[1768307210621,0.72085832,3134.9,3133.4,0.15974]
[1768307210826,0.72085832,3134.7,3132.9,0.25292142]
[1768307211027,0.72085832,3134.7,3133.4,1.08647628]
[1768307211718,0.72085832,3134.7,3133.4,1.0897419]
[1768307212222,1.08647628,3134.4,3133.4,0.00326562]
[1768307212420,0.72085832,3134.3,3133.4,0.00326562]
[1768307213124,0.72085832,3134.7,3133.8,1.08647628]
[1768307213334,1.24611628,3135.3,3134.1,1.08647628]
[1768307213335,0.72085832,3135.1,3134.1,1.08647628]
[1768307215031,0.72085832,3135.1,3134.4,1.08647628]
[1768307215224,0.72085832,3135.5,3134.4,1.08647628]
[1768307215430,0.98746214,3135.4,3134.2,1.08647628]
[1768307215630,0.72085832,3135.5,3134.2,1.08647628]
[1768307215831,0.98746074,3135.4,3134.2,1.08647628]
[1768307216032,0.72085832,3135.5,3134.2,1.08647628]
[1768307216220,0.9874627,3135.4,3134.2,1.08647628]
[1768307216422,0.72085832,3135.5,3134.2,1.08647628]
[1768307216621,0.98750988,3135.4,3134.2,1.08647628]
[1768307216822,0.72085832,3135.5,3134.2,1.08647628]
[1768307217125,0.98750899,3135.4,3134.2,1.08647628]
[1768307217425,0.72085832,3135.5,3134.2,1.08647628]
[1768307218234,0.98765072,3135.4,3134.2,1.08647628]
[1768307218425,0.72085832,3135.5,3134.2,1.08647628]
[1768307218626,1.70850904,3135.4,3134.2,1.08647628]
[1768307218826,0.72085832,3135.4,3134.2,1.08647628]
[1768307220530,0.88047832,3135.8,3134.2,1.08647628]
[1768307220727,1.70862456,3135.7,3134.2,1.08647628]
[1768307220932,1.70862456,3135.6,3134.2,1.08647628]
[1768307221132,0.98776624,3135.5,3134.2,1.08647628]
[1768307221330,2.07465526,3135.5,3134.6,1.08688902]
[1768307221530,1.08688902,3135.5,3134.6,1.08688902]
[1768307222332,0.9880132,3135.4,3134.6,1.08688902]
[1768307222532,1.08688902,3135.5,3134.6,1.08688902]
[1768307222731,0.98801318,3135.4,3134.6,1.08688902]
[1768307222936,1.08688902,3135.5,3134.6,1.08688902]
[1768307223137,0.98801315,3135.4,3134.6,1.08688902]
[1768307223334,1.08688902,3135.5,3134.6,1.08688902]
[1768307223536,0.98815703,3135.4,3134.6,1.08688902]
[1768307223737,1.08688902,3135.5,3134.6,1.08688902]
[1768307224038,0.98815705,3135.4,3134.6,1.08688902]
[1768307224234,1.08688902,3135.5,3134.6,1.08688902]
[1768307224433,0.98831888,3135.4,3134.6,1.08688902]
[1768307224633,1.08688902,3135.5,3134.6,1.08688902]
[1768307224836,0.98831888,3135.4,3134.6,1.08688902]
[1768307225033,0.72085832,3135.6,3134.8,1.08688902]
[1768307225235,0.98831699,3135.5,3134.8,1.08688902]
[1768307225433,0.72085832,3135.6,3134.8,1.08688902]
[1768307225743,0.98856516,3135.5,3134.8,1.08688902]
[1768307226040,0.72085832,3135.6,3134.8,1.08688902]
[1768307226240,0.98856717,3135.5,3134.8,1.08688902]
[1768307226441,0.72085832,3135.6,3134.8,1.08688902]
[1768307226642,0.98875751,3135.5,3134.8,1.08688902]
[1768307226939,0.72085832,3135.6,3134.8,1.08688902]
[1768307227142,0.98875881,3135.5,3134.8,1.08688902]
[1768307227340,1.80774734,3135.6,3134.8,1.08688902]
[1768307227540,0.98896819,3135.5,3134.8,1.08688902]
[1768307227742,1.80774734,3135.6,3134.8,1.08688902]
[1768307227929,0.98896817,3135.5,3134.8,1.08688902]
[1768307228134,1.80774734,3135.6,3134.8,1.08688902]
[1768307228337,0.98918519,3135.5,3134.8,1.08688902]
[1768307228534,1.80774734,3135.6,3134.8,1.08688902]
[1768307228735,0.98920567,3135.5,3134.8,1.08688902]
[1768307228936,1.80774734,3135.6,3134.8,1.08688902]
[1768307229136,0.98920607,3135.5,3134.8,1.08688902]
[1768307229337,1.80774734,3135.6,3134.8,1.08688902]
[1768307229641,0.99331443,3135.5,3134.8,1.08688902]
[1768307229844,1.80774734,3135.6,3134.8,1.08688902]
[1768307230043,0.99330985,3135.5,3134.8,1.08688902]
[1768307230245,1.08688902,3135.8,3134.8,1.08688902]
[1768307230442,0.9936391,3135.7,3134.8,1.08688902]
[1768307230646,0.9936391,3135.6,3134.8,1.08688902]
[1768307230848,1.08688902,3135.8,3134.8,1.08688902]
[1768307231143,0.99367131,3135.7,3135.0,1.08688902]
[1768307231348,1.08688902,3135.9,3135.0,1.08688902]
[1768307231548,0.99354878,3135.8,3135.0,1.08688902]
[1768307231748,0.75614955,3136.0,3135.0,1.08688902]
[1768307232044,0.99357883,3135.9,3135.0,1.08688902]
[1768307232246,0.75614955,3136.0,3135.0,1.08688902]
[1768307232446,0.99334463,3135.9,3135.0,1.08688902]
[1768307232648,0.75614955,3136.0,3135.0,1.08688902]
[1768307232843,0.99333972,3135.9,3135.0,1.08688902]
[1768307233037,0.75614955,3136.0,3135.0,1.08688902]
[1768307233241,0.99334622,3135.9,3135.0,1.08688902]
[1768307233448,0.75614955,3136.0,3135.0,1.08688902]
[1768307233746,0.99310552,3135.9,3135.0,1.08688902]
[1768307233948,0.75614955,3136.0,3135.0,1.08688902]
[1768307235641,0.75614955,3136.0,3135.2,1.08688902]
[1768307236337,0.00264186,3136.0,3135.4,1.08688902]
[1768307236941,0.00264186,3136.0,3135.6,1.08688902]
[1768307237144,0.00264186,3136.0,3135.6,1.08972853]
[1768307239244,0.77218643,3136.8,3135.8,1.08688902]
[1768307239447,0.77218643,3136.8,3135.6,1.08972853]
[1768307239448,1.85907545,3136.8,3135.9,1.08688902]
[1768307240350,1.86164148,3136.8,3135.9,1.08688902]
[1768307241151,0.00256603,3136.8,3136.1,1.08688902]
[1768307243142,1.08688902,3136.7,3135.8,1.08688902]
[1768307243345,1.08688902,3136.7,3135.7,1.08688902]
[1768307245145,0.00256603,3136.8,3135.9,1.08688902]
[1768307249257,0.00256603,3136.8,3135.6,0.00283951]
[1768307249453,0.00256603,3136.8,3136.0,1.08688902]
[1768307256962,0.00256603,3136.8,3135.6,2.37672853]
[1768307257164,0.00256603,3136.8,3136.0,1.08688902]
[1768307258169,1.08945505,3136.8,3135.9,1.08688902]
[1768307260667,1.08688902,3136.6,3135.6,0.00283951]
[1768307260864,1.08688902,3136.6,3135.7,1.08688902]
[1768307262165,1.08688902,3136.6,3135.6,0.00283951]
[1768307262471,1.08688902,3136.5,3135.6,0.00283951]
[1768307262872,1.08688902,3136.3,3135.6,0.00283951]
[1768307269976,1.08688902,3136.4,3135.6,0.00283951]
[1768307270778,1.08688902,3136.2,3135.6,0.00283951]
[1768307276779,1.84414817,3136.4,3135.6,0.00283951]
[1768307277381,0.75725915,3136.4,3135.6,0.00283951]
[1768307277583,1.84414817,3136.4,3135.6,0.00283951]
[1768307277882,0.75725915,3136.3,3135.6,0.00283951]
[1768307282183,0.75725915,3136.1,3135.6,0.00283951]
[1768307282380,1.08688902,3135.8,3134.9,1.08688902]
[1768307283284,0.75725915,3135.9,3134.9,0.0029769]
[1768307285788,0.1596,3136.3,3135.2,1.08667072]
[1768307285985,0.99228172,3136.2,3135.2,1.08667072]
[1768307286186,0.99228172,3136.1,3135.2,1.08667072]
[1768307286385,0.1596,3136.3,3135.2,1.08667072]
[1768307286587,0.99214829,3136.2,3135.2,1.08667072]
[1768307286783,0.99214829,3136.1,3135.2,1.08667072]
[1768307286983,0.1596,3136.3,3135.2,1.08667072]
[1768307287184,0.99214689,3136.2,3135.2,1.08667072]
[1768307287388,0.99210584,3136.1,3135.2,1.08667072]
[1768307287684,0.1596,3136.3,3135.2,1.08667072]
[1768307287884,0.99210584,3136.2,3135.2,1.08667072]
[1768307288184,0.1596,3136.3,3135.2,1.08667072]
[1768307288385,0.99208257,3136.2,3135.2,1.08667072]
[1768307288587,0.1596,3136.3,3135.2,1.08667072]
[1768307288895,0.99208189,3136.2,3135.2,1.08667072]
[1768307289096,0.99208529,3136.1,3135.2,1.08667072]
[1768307289300,0.1596,3136.3,3135.2,1.08667072]
[1768307289502,0.99208304,3136.2,3135.2,1.08667072]
[1768307289690,0.99208304,3136.1,3135.2,1.08667072]
[1768307289893,0.1596,3136.3,3135.2,1.08667072]
[1768307290198,0.99280277,3136.2,3135.2,1.08667072]
[1768307290498,0.1596,3136.3,3135.2,1.08667072]
[1768307290798,0.99281638,3136.2,3135.1,1.08667072]
[1768307291095,0.99281638,3136.1,3135.1,1.08667072]
[1768307291397,0.88394287,3136.3,3135.1,1.08667072]
[1768307291598,0.99285985,3136.2,3135.1,1.08667072]
[1768307291893,0.99285985,3136.1,3135.1,1.08667072]
[1768307292099,0.72434287,3136.2,3135.0,1.08667072]
[1768307292288,0.9928614,3136.1,3135.0,1.08667072]
[1768307292597,0.72434287,3136.2,3135.0,1.08667072]
[1768307292797,0.99290918,3136.1,3135.0,1.08667072]
[1768307292991,0.72434287,3136.2,3135.0,1.08667072]
[1768307293193,0.99290916,3136.1,3135.0,1.08667072]
[1768307293396,0.72434287,3136.2,3135.0,1.08667072]
[1768307293585,0.99291561,3136.1,3135.0,1.08667072]
[1768307293789,0.72434287,3136.2,3135.0,1.08667072]
[1768307294100,0.99291561,3136.1,3135.0,1.08667072]
[1768307294300,0.72434287,3136.2,3135.0,1.08667072]
[1768307294499,0.99293666,3136.1,3135.0,1.08667072]
[1768307294690,0.72434287,3136.2,3135.0,1.08667072]
[1768307294891,0.99293666,3136.1,3135.0,1.08667072]
[1768307295091,0.72434287,3136.2,3135.0,1.08667072]
[1768307295389,0.99293666,3136.1,3135.0,1.08667072]
[1768307295590,0.72434287,3136.2,3135.0,1.08667072]
[1768307295795,0.99297348,3136.1,3135.0,1.08667072]
[1768307296093,0.72434287,3136.2,3135.0,1.08667072]
[1768307296294,0.99297348,3136.1,3135.0,1.08667072]
[1768307296497,0.72434287,3136.2,3135.0,1.08667072]
[1768307296697,0.9930244,3136.1,3135.0,1.08667072]
[1768307296898,0.72434287,3136.2,3135.0,1.08667072]
[1768307297097,0.9930244,3136.1,3135.0,1.08667072]
[1768307297298,0.72434287,3136.2,3135.0,1.08667072]
[1768307297498,0.99309329,3136.1,3135.0,1.08667072]
[1768307297700,0.72434287,3136.2,3135.0,1.08667072]
[1768307297899,0.99309307,3136.1,3135.0,1.08667072]
[1768307298100,0.72434287,3136.2,3135.0,1.08667072]
[1768307298296,0.99309307,3136.1,3135.0,1.08667072]
[1768307298496,0.72434287,3136.2,3135.0,1.08667072]
[1768307298696,0.99318126,3136.1,3135.0,1.08667072]
[1768307298887,0.72434287,3136.2,3135.0,1.08667072]
[1768307299094,0.99318126,3136.1,3134.9,0.0029769]
[1768307299392,0.72434287,3136.2,3135.0,1.08667072]
[1768307299593,0.99328898,3136.1,3135.0,1.08667072]
[1768307299793,0.72434287,3136.2,3135.0,1.08667072]
[1768307299996,0.99328898,3136.1,3135.0,1.08667072]
[1768307300301,0.72434287,3136.2,3135.0,1.08667072]
[1768307300500,1.72133463,3136.1,3135.0,1.08667072]
[1768307300806,0.72794717,3136.1,3134.9,0.0029769]
[1768307301097,1.08667072,3135.8,3134.9,0.0029769]
[1768307301301,1.81461789,3135.6,3134.9,0.0029769]
[1768307301504,0.72794717,3135.5,3134.1,1.4447]
[1768307302603,0.72794717,3135.5,3134.2,1.08667072]
[1768307305407,0.72794717,3135.5,3134.4,1.08667072]
[1768307306506,0.72794717,3135.5,3134.6,1.08667072]
[1768307306707,0.88756717,3135.9,3134.9,1.08667072]
[1768307306909,0.99301848,3135.8,3134.9,1.08667072]
[1768307307206,0.72794717,3135.9,3134.9,1.08667072]
[1768307307505,0.99305072,3135.8,3134.9,1.08667072]
[1768307307699,0.99305072,3135.7,3134.9,1.08667072]
[1768307307899,0.72794717,3135.9,3134.9,1.08667072]
[1768307308108,0.99305079,3135.8,3134.9,1.08667072]
[1768307308404,0.72794717,3135.9,3134.9,1.08667072]
[1768307308706,0.99307858,3135.8,3134.9,1.08667072]
[1768307308902,0.72794717,3135.9,3134.9,1.08667072]
[1768307309299,0.9931934,3135.8,3134.9,1.08667072]
[1768307309499,0.72794717,3135.9,3134.9,1.08667072]
[1768307309799,0.99319359,3135.8,3134.9,1.08667072]
[1768307310001,0.72794717,3135.9,3134.9,1.08667072]
[1768307310199,0.99319355,3135.8,3134.9,1.08667072]
[1768307310397,0.72794717,3135.9,3134.9,1.08667072]
[1768307310600,0.99320938,3135.8,3134.9,1.08667072]
[1768307310810,0.72794717,3135.9,3134.9,1.08667072]
[1768307311002,0.99320923,3135.8,3134.9,1.08667072]
[1768307311199,0.72794717,3135.9,3134.9,1.08667072]
[1768307311401,0.99335669,3135.8,3134.9,1.08667072]
[1768307311598,0.72794717,3135.9,3134.9,1.08667072]
[1768307311802,0.9933565,3135.8,3134.9,1.08667072]
[1768307312109,0.72794717,3135.9,3134.9,1.08667072]
[1768307312304,0.99335654,3135.8,3134.9,1.08667072]
[1768307312499,0.72794717,3135.9,3134.9,1.08667072]
[1768307326020,1.08667072,3136.2,3134.9,1.08667072]
[1768307326222,0.99319928,3136.1,3134.9,1.08667072]
[1768307326414,0.99319928,3136.0,3134.9,1.08667072]
[1768307326616,0.99319928,3135.9,3134.9,1.08667072]
[1768307326817,1.86709848,3136.2,3134.9,1.08667072]
[1768307327023,0.99323785,3136.1,3134.9,1.08667072]
[1768307327318,0.99323785,3136.0,3134.9,1.08667072]
[1768307327519,0.99323785,3135.9,3134.9,1.08667072]
[1768307327721,1.86709848,3136.2,3134.9,1.08667072]
[1768307327919,0.99327924,3136.1,3134.9,1.08667072]
[1768307328119,0.99327924,3136.0,3134.9,1.08667072]
[1768307328316,0.99327924,3135.9,3134.9,1.08667072]
[1768307328516,0.78042776,3136.2,3134.9,1.08667072]
[1768307328716,0.99332025,3136.1,3134.9,1.08667072]
[1768307328918,0.99332025,3136.0,3134.9,1.08667072]
[1768307329223,0.99332025,3135.9,3134.9,1.08667072]
[1768307329424,0.78042776,3136.2,3134.9,1.08667072]
[1768307329625,0.99335984,3136.1,3134.9,1.08667072]
[1768307329821,0.99335984,3136.0,3134.9,1.08667072]
[1768307330027,0.99335984,3135.9,3134.9,1.08667072]
[1768307330326,0.78042776,3136.2,3134.9,1.08667072]
[1768307330524,0.99340158,3136.1,3134.9,1.08667072]
[1768307330720,0.99340158,3136.0,3134.9,1.08667072]
[1768307330923,0.99340158,3135.9,3134.9,1.08667072]
[1768307331129,0.78042776,3136.2,3134.9,1.08667072]
[1768307331429,0.99340158,3136.1,3134.9,1.08667072]
[1768307331619,0.99340158,3136.0,3134.9,1.08667072]
[1768307331824,0.99340158,3135.9,3134.9,1.08667072]
[1768307332026,0.78042776,3136.2,3134.9,1.08667072]
[1768307332226,0.99339249,3136.1,3134.9,1.08667072]
[1768307332420,0.99339249,3136.0,3134.6,0.15968]
[1768307332623,0.99339249,3135.9,3134.9,1.08667072]
[1768307332926,0.78042776,3136.2,3134.9,1.08667072]
[1768307333128,0.99345104,3136.1,3134.9,1.08667072]
[1768307333329,0.99345104,3136.0,3134.9,1.08667072]
[1768307333628,0.99345104,3135.9,3134.9,1.08667072]
[1768307333830,0.78042776,3136.1,3134.9,1.08667072]
[1768307334040,0.99352184,3136.0,3134.9,1.08667072]
[1768307334332,0.99352184,3135.9,3134.9,1.08667072]
[1768307334535,0.78042776,3136.1,3134.9,1.08667072]
[1768307334726,0.99361294,3136.0,3134.9,1.08667072]
[1768307335023,0.99361294,3135.9,3134.9,1.08667072]
[1768307335225,0.78042776,3136.1,3134.9,1.08667072]
[1768307335424,0.99372886,3136.0,3134.9,1.08667072]
[1768307335725,0.99372886,3135.9,3134.9,1.08667072]
[1768307335917,0.78042776,3136.1,3134.9,1.08667072]
[1768307336117,0.99372889,3136.0,3134.9,1.08667072]
[1768307336317,0.99372889,3135.9,3134.9,1.08667072]
[1768307336617,0.78042776,3136.1,3134.9,1.08667072]
[1768307336813,0.99387711,3136.0,3134.9,1.08667072]
[1768307337017,0.99387711,3135.9,3134.9,1.08667072]
[1768307337217,0.78042776,3136.1,3134.9,1.08667072]
[1768307337421,0.99398165,3136.0,3134.9,1.08667072]
[1768307337613,0.99398165,3135.9,3134.9,1.08667072]
[1768307337821,0.78042776,3136.1,3134.9,1.08667072]
[1768307338019,0.99398161,3136.0,3134.9,1.08667072]
[1768307338220,0.99398161,3135.9,3134.9,1.08667072]
[1768307338428,0.78042776,3136.1,3134.9,1.08667072]
[1768307338629,0.99406861,3136.0,3134.9,1.08667072]
[1768307338817,0.99406861,3135.9,3134.9,1.08667072]
[1768307339021,0.78042776,3136.1,3134.9,1.08667072]
[1768307339228,0.99406841,3136.0,3134.9,1.08667072]
[1768307339427,0.99406841,3135.9,3134.9,1.08667072]
[1768307339629,0.78042776,3136.1,3134.9,1.08667072]
[1768307339831,0.99411,3136.0,3135.4,1.08667072]
[1768307340029,0.78042776,3136.5,3135.6,1.08667072]
[1768307340226,0.98985437,3136.4,3135.6,1.08667072]
[1768307340427,0.98985437,3136.3,3135.6,1.08667072]
[1768307340624,0.98985437,3136.2,3135.6,1.08667072]
[1768307340829,0.78042776,3136.5,3135.6,1.08667072]
[1768307341029,0.98990472,3136.4,3135.6,1.08667072]
[1768307341226,0.78042776,3136.5,3135.6,1.08667072]
[1768307341227,0.98990472,3136.3,3135.6,1.08667072]
[1768307341531,0.98990472,3136.2,3135.4,1.08667072]
[1768307341726,0.78042776,3136.5,3135.1,1.08667072]
[1768307342030,1.08923675,3136.8,3134.8,1.284]
[1768307342031,0.78042776,3136.2,3134.8,1.284]
[1768307342224,0.78042776,3136.0,3134.8,1.284]
[1768307342425,0.98958645,3135.9,3134.8,1.284]
[1768307342626,1.77001421,3135.9,3134.8,1.284]
[1768307342827,0.78042776,3135.9,3134.6,1.08667072]
[1768307343125,0.78042776,3135.9,3134.7,1.284]
[1768307343325,1.86704148,3135.9,3135.0,1.08661372]
[1768307344329,1.86704148,3135.4,3134.4,1.08661372]
[1768307344533,1.08661372,3135.2,3134.3,1.08661372]
[1768307345434,0.78042776,3135.4,3134.3,1.08661372]
[1768307345631,1.08661372,3135.3,3134.3,1.08661372]
[1768307346033,1.08661372,3135.3,3134.5,1.08661372]
[1768307346536,0.78042776,3135.4,3134.5,1.08661372]
[1768307347837,0.78042776,3135.4,3134.7,1.08661372]
[1768307349238,1.08661372,3135.7,3134.7,1.08661372]
[1768307349433,1.84116247,3135.7,3134.7,1.08661372]
[1768307349631,0.98830395,3135.6,3134.7,1.08661372]
[1768307349830,1.84116247,3135.7,3134.7,1.08661372]
[1768307350031,0.98830409,3135.6,3134.7,1.08661372]
[1768307350331,1.84116247,3135.7,3134.7,1.08661372]
[1768307355432,0.75454875,3135.7,3134.9,1.08661372]
[1768307371451,0.98888143,3135.6,3134.9,1.08661372]
[1768307371655,0.75454875,3135.7,3134.9,1.08661372]
[1768307371951,0.98888148,3135.6,3134.9,1.08661372]
[1768307372153,0.75454875,3135.7,3134.9,1.08661372]
[1768307372352,0.98888143,3135.6,3134.9,1.08661372]
[1768307372652,0.75454875,3135.7,3134.9,1.08661372]
[1768307372852,0.98909328,3135.6,3134.9,1.08661372]
[1768307373151,0.75454875,3135.7,3134.9,1.08661372]
[1768307373352,0.98909333,3135.6,3134.9,1.08661372]
[1768307373647,0.75454875,3135.7,3134.9,1.08661372]
[1768307373952,0.98937442,3135.6,3134.9,1.08661372]
[1768307374255,0.75454875,3135.7,3134.9,1.08661372]
[1768307374450,0.98955747,3135.6,3134.9,1.08661372]
[1768307374640,0.98955747,3135.5,3134.9,1.08661372]
[1768307374843,0.75454875,3135.7,3134.9,1.08661372]
[1768307375044,0.98955749,3135.6,3134.9,1.08661372]
[1768307375243,0.98955749,3135.5,3134.9,1.08661372]
[1768307375446,0.75454875,3135.7,3134.9,1.08661372]
[1768307375651,0.98958519,3135.6,3134.9,1.08661372]
[1768307375851,0.98958519,3135.5,3134.9,1.08661372]
[1768307376054,0.75454875,3135.7,3134.9,1.08661372]
[1768307376252,0.9895852,3135.6,3134.9,1.08661372]
[1768307376453,0.9895852,3135.5,3134.9,1.08661372]
[1768307376756,0.75454875,3135.7,3134.9,1.08661372]
[1768307377051,0.9896077,3135.6,3134.9,1.08661372]
[1768307377252,0.9896077,3135.5,3134.8,1.08661372]
[1768307377442,0.75454875,3135.7,3134.8,1.08661372]
[1768307377645,0.98963298,3135.6,3134.8,1.08661372]
[1768307377944,0.98963298,3135.5,3134.8,1.08661372]
[1768307378146,0.75454875,3135.7,3134.8,1.08661372]
[1768307378345,0.98963297,3135.6,3134.8,1.08661372]
[1768307378645,0.98963297,3135.5,3134.8,1.08661372]
[1768307378846,0.75454875,3135.7,3134.8,1.08661372]
[1768307379044,0.9896664,3135.6,3134.8,1.08661372]
[1768307379246,0.9896664,3135.5,3134.8,1.08661372]
[1768307379449,0.75454875,3135.7,3134.8,1.08661372]
[1768307379642,0.99086872,3135.6,3134.8,1.08661372]
[1768307379850,0.99086872,3135.5,3134.8,1.08661372]
[1768307380056,0.75454875,3135.7,3134.8,1.08661372]
[1768307380352,0.99086872,3135.6,3134.8,1.08661372]
[1768307380552,0.99086872,3135.5,3134.8,1.08661372]
[1768307380850,0.75454875,3135.7,3134.8,1.08661372]
[1768307381052,0.99087405,3135.6,3134.8,1.08661372]
[1768307381252,0.99087405,3135.5,3134.8,1.08661372]
[1768307381453,0.75454875,3135.7,3134.3,0.1597]
[1768307381652,0.99087283,3135.6,3134.8,1.08661372]
[1768307381952,0.99087283,3135.5,3134.8,1.08661372]
[1768307382150,0.75454875,3135.7,3134.8,1.08661372]
[1768307382347,0.99087289,3135.6,3134.3,0.1597]
[1768307382553,0.99087289,3135.5,3134.8,1.08661372]
[1768307382753,0.75454875,3135.7,3134.8,1.08661372]
[1768307382946,0.99087199,3135.6,3134.8,1.08661372]
[1768307383146,0.99087199,3135.5,3134.8,1.08661372]
[1768307383446,0.75454875,3135.7,3134.8,1.08661372]
[1768307383652,0.99087165,3135.6,3134.8,1.08661372]
[1768307383852,0.99087165,3135.5,3134.8,1.08661372]
[1768307384053,0.75454875,3135.7,3134.8,1.08661372]
[1768307384352,0.99087165,3135.6,3134.8,1.08661372]
[1768307384552,0.99087165,3135.5,3134.8,1.08661372]
[1768307384755,0.75454875,3135.7,3134.8,1.08661372]
[1768307385052,0.9908724,3135.6,3134.8,1.08661372]
[1768307385253,0.9908724,3135.5,3134.8,1.08661372]
[1768307385452,0.75454875,3135.7,3134.8,1.08661372]
[1768307385750,0.99087269,3135.6,3134.8,1.08661372]
[1768307385952,0.99087269,3135.5,3134.8,1.08661372]
[1768307386154,0.75454875,3135.7,3134.8,1.08661372]
[1768307386342,0.99087259,3135.6,3134.8,1.08661372]
[1768307386548,0.99087259,3135.5,3134.8,1.08661372]
[1768307386748,0.75454875,3135.7,3134.8,1.08661372]
[1768307386948,0.99087242,3135.6,3134.8,1.08661372]
[1768307387153,0.99087242,3135.5,3134.8,1.08661372]
[1768307387355,0.75454875,3135.7,3134.8,1.08661372]
[1768307387553,0.99087237,3135.6,3134.8,1.08661372]
[1768307387751,0.99087237,3135.5,3134.8,1.08661372]
[1768307387951,0.75454875,3135.7,3134.8,1.08661372]
[1768307388155,0.99087237,3135.6,3134.8,1.08661372]
[1768307388356,0.99087237,3135.5,3134.8,1.08661372]
[1768307388557,0.75454875,3135.7,3134.8,1.08661372]
[1768307388759,0.99087242,3135.6,3134.8,1.08661372]
[1768307388957,0.99087242,3135.5,3134.8,1.08661372]
[1768307389157,0.75454875,3135.7,3134.8,1.08661372]
[1768307389360,0.99087242,3135.6,3134.8,1.08661372]
[1768307389560,0.99087242,3135.5,3134.8,1.08661372]
[1768307389754,0.75454875,3135.7,3134.8,1.08661372]
[1768307389955,0.99087726,3135.6,3134.8,1.08661372]
[1768307390154,0.99087726,3135.5,3134.8,1.08661372]
[1768307390357,0.75454875,3135.7,3134.8,1.08661372]
[1768307390560,0.99088351,3135.6,3134.8,1.08661372]
[1768307390760,0.99088351,3135.5,3134.8,1.08661372]
[1768307390950,0.75454875,3135.7,3134.8,1.08661372]
[1768307391154,0.99088345,3135.6,3134.8,1.08661372]
[1768307391355,0.99088345,3135.5,3134.8,1.08661372]
[1768307391555,0.75454875,3135.7,3134.8,1.08661372]
[1768307391758,0.99088497,3135.6,3134.8,1.08661372]
[1768307391960,0.99088497,3135.5,3134.8,1.08661372]
[1768307392254,0.75454875,3135.7,3134.8,1.08661372]
[1768307392456,0.99088497,3135.6,3134.8,1.08661372]
[1768307392657,0.99088497,3135.5,3134.8,1.08661372]
[1768307392859,0.75454875,3135.7,3134.8,1.08661372]
[1768307393056,0.99088674,3135.6,3134.8,1.08661372]
[1768307393362,0.990889,3135.5,3134.8,1.08661372]
[1768307393564,1.08661372,3135.8,3134.8,1.08661372]
[1768307393751,0.15961,3136.0,3134.4,2.01468325]
[1768307393752,0.99088831,3135.7,3135.0,1.08661372]
[1768307393957,0.99088831,3135.6,3135.0,1.08661372]
[1768307394261,1.08661372,3136.0,3135.0,1.08661372]
[1768307394463,0.99075567,3135.9,3135.0,1.08661372]
[1768307394664,0.99075567,3135.8,3135.0,1.08661372]
[1768307394862,0.99075567,3135.7,3135.0,1.08661372]
[1768307395164,0.99075567,3135.6,3135.0,1.08661372]
[1768307395364,1.82236451,3136.0,3135.0,1.08661372]
[1768307395562,0.99070541,3135.9,3135.0,1.08661372]
[1768307395763,0.99070541,3135.8,3135.0,1.08661372]
[1768307395976,0.99070541,3135.7,3135.0,1.08661372]
[1768307396176,1.82236451,3136.0,3135.0,1.08661372]
[1768307396378,0.99063681,3135.9,3135.0,1.08661372]
[1768307396574,0.99063681,3135.8,3135.0,1.08661372]
[1768307396776,0.99063681,3135.7,3135.0,1.08661372]
[1768307396977,1.82236451,3136.0,3135.0,1.08661372]
[1768307397276,0.99063681,3135.9,3135.0,1.08661372]
[1768307397477,0.99063681,3135.8,3135.0,1.08661372]
[1768307397678,0.99063681,3135.7,3135.0,1.08661372]
[1768307397877,1.82236451,3136.0,3135.0,1.08661372]
[1768307398177,0.99058868,3135.9,3135.0,1.08661372]
[1768307398376,0.99058868,3135.8,3135.0,1.08661372]
[1768307398573,0.99058868,3135.7,3135.0,1.08661372]
[1768307398877,1.82236451,3136.0,3135.0,1.08661372]
[1768307399078,0.99055057,3135.9,3135.0,1.08661372]
[1768307399275,0.99055057,3135.8,3135.0,1.08661372]
[1768307399470,0.99055057,3135.7,3135.0,1.08661372]
[1768307399671,1.82236451,3136.0,3135.0,1.08661372]
[1768307399875,0.99051969,3135.9,3135.0,1.08661372]
[1768307400079,0.99051969,3135.8,3135.0,1.08661372]
[1768307400379,0.99051969,3135.7,3135.0,1.08661372]
[1768307400578,1.08661372,3135.8,3134.9,1.08661372]
[1768307400780,0.99051475,3135.7,3134.9,1.08661372]
[1768307400978,1.08661372,3135.8,3134.9,1.08661372]
[1768307401279,0.99051499,3135.7,3134.9,1.08661372]
[1768307401474,1.08661372,3135.8,3134.9,1.08661372]
[1768307401675,0.99048999,3135.7,3134.9,1.08661372]
[1768307401882,2.07710671,3135.6,3134.7,1.08661372]
[1768307402074,1.08661372,3135.6,3134.7,1.08661372]
[1768307403182,1.82236451,3135.6,3134.4,0.15969]
[1768307403381,1.82236451,3135.6,3134.7,1.08661372]
[1768307405286,0.73575079,3135.6,3134.5,1.08676516]
[1768307405789,1.88024991,3136.0,3134.5,1.08676516]
[1768307405978,0.99047087,3135.9,3134.7,1.08676516]
[1768307406177,0.99047087,3135.8,3134.7,1.08676516]
[1768307406379,0.99047087,3135.7,3134.7,1.08676516]
[1768307406585,1.88024991,3136.0,3134.7,1.08676516]
[1768307406787,1.78395239,3135.9,3134.7,1.08676516]
[1768307407081,0.99046764,3135.8,3134.7,1.08676516]
[1768307407286,0.99046764,3135.7,3134.7,1.08676516]
[1768307407488,0.79348475,3135.9,3134.7,1.08676516]
[1768307407684,0.99046654,3135.8,3134.5,1.08676516]
[1768307407884,0.99046654,3135.7,3134.5,1.08676516]
[1768307408079,0.79348475,3135.9,3134.5,1.08676516]
[1768307408281,0.99046658,3135.8,3134.5,1.08676516]
[1768307408480,0.99046658,3135.7,3134.5,1.08676516]
[1768307408685,0.79348475,3135.9,3134.4,1.24645516]
[1768307408890,0.99046663,3135.8,3134.4,1.24645516]
[1768307409086,0.99046663,3135.7,3134.4,1.24645516]
[1768307409387,0.79348475,3135.9,3134.4,1.24645516]
[1768307409587,0.98878997,3135.8,3134.4,1.24645516]
[1768307409885,0.98878997,3135.7,3134.4,1.24645516]
[1768307410086,0.79348475,3135.9,3134.4,1.24645516]
[1768307410289,0.98878997,3135.8,3134.5,0.15968]
[1768307410589,0.98878997,3135.7,3134.7,1.08676516]
[1768307410890,0.79348475,3135.9,3134.7,1.08676516]
[1768307411095,0.98877404,3135.8,3134.7,1.08676516]
[1768307411281,0.98877404,3135.7,3134.7,1.08676516]
[1768307411481,0.79348475,3135.9,3134.7,1.08676516]
[1768307411682,0.98876961,3135.8,3134.7,1.08676516]
[1768307411890,0.98876961,3135.7,3134.7,1.08676516]
[1768307412090,0.79348475,3135.9,3134.7,1.08676516]
[1768307412291,0.98876963,3135.8,3134.7,1.08676516]
[1768307412592,0.98876963,3135.7,3134.7,1.08676516]
[1768307412790,0.79348475,3135.9,3134.7,1.08676516]
[1768307413089,0.98878883,3135.8,3134.7,1.08676516]
[1768307413289,0.98878883,3135.7,3134.7,1.08676516]
[1768307413490,0.79348475,3135.9,3134.7,1.08676516]
[1768307413689,0.98879627,3135.8,3134.7,1.08676516]
[1768307413891,0.98879627,3135.7,3134.7,1.08676516]